bitfinex-derivatives/quotes_ETHF0:USTF0_20251021
["timestamp","ask_amount","ask_price","bid_price","bid_amount"]
[1761067659613,1.7265,4010.3,4010.1,0.44872]
[1761067659809,1.5265,4010.3,4010.1,0.44872]
[1761067661315,0.00248716,4010.8,4010.1,0.44872]
[1761067661316,0.00248716,4010.8,4010.7,0.44866]
[1761067661611,0.00248716,4010.8,4010.7,14.21546]
[1761067661814,1.72898716,4010.8,4010.7,14.21546]
[1761067662204,0.00248716,4010.8,4010.7,14.21546]
[1761067662814,1.72898716,4010.8,4010.7,14.21546]
[1761067663008,1.7265,4010.7,4010.2,3.2078]
[1761067663212,1.7265,4010.2,4009.7,3.2078]
[1761067663416,0.7101,4010.6,4009.7,3.2078]
[1761067663607,1.7265,4010.7,4010.2,3.2078]
[1761067663804,2.17513,4010.7,4010.3,10.555]
[1761067664014,1.7265,4010.5,4010.3,10.555]
[1761067664514,0.00248716,4010.8,4010.6,0.44863]
[1761067664714,1.72898716,4010.8,4010.7,3.2078]
[1761067664908,0.00248716,4010.8,4010.7,3.2078]
[1761067666611,1.12135,4011.5,4010.7,3.2078]
[1761067666823,0.7416,4011.6,4011.0,0.44858]
[1761067667024,0.7416,4011.6,4010.8,10.551]
[1761067667219,1.12115,4012.2,4011.5,0.44853]
[1761067667220,3.2078,4012.2,4011.5,0.44853]
[1761067667521,3.21069326,4012.2,4011.5,0.56199661]
[1761067667718,3.21069326,4012.2,4011.5,1.49921144]
[1761067668225,3.21069326,4012.2,4011.9,0.44849]
[1761067668426,3.21069326,4012.2,4012.0,10.99647]
[1761067668717,3.21069326,4012.2,4012.0,10.548]
[1761067668925,4.93719326,4012.2,4012.0,10.548]
[1761067669123,3.65915326,4012.2,4012.0,10.548]
[1761067669316,1.7265,4012.1,4012.0,10.548]
[1761067669518,1.7265,4011.6,4011.5,0.00201144]
[1761067669716,1.7265,4011.6,4011.5,10.54701144]
[1761067670122,0.44852,4011.7,4011.5,10.54701144]
[1761067670420,2.17502,4011.7,4011.6,10.544]
[1761067670819,7.17502,4011.7,4011.6,10.544]
[1761067671028,1.5813,4011.6,4011.5,0.00201144]
[1761067672226,6.5813,4011.6,4011.5,0.00201144]
[1761067672417,1.5813,4011.6,4011.5,0.00201144]
[1761067673823,6.5813,4011.6,4011.5,0.00201144]
[1761067674123,1.5813,4011.6,4011.5,0.00201144]
[1761067675124,6.5813,4011.6,4011.5,0.00201144]
[1761067676023,0.44867,4010.4,4010.3,3.2078]
[1761067676228,2.02997,4010.4,4010.3,3.2078]
[1761067676621,0.44869,4010.2,4010.1,10.533]
[1761067676822,2.02999,4010.2,4010.1,10.533]
[1761067677022,2.02999,4010.2,4010.1,10.53527364]
[1761067678028,7.02999,4010.2,4010.1,0.00227364]
[1761067678222,0.44876,4009.5,4009.4,10.53]
[1761067678530,2.03006,4009.5,4009.4,10.53]
[1761067678829,2.03006,4009.5,4008.8,3.2078]
[1761067679027,2.03013,4008.9,4008.8,13.1098]
[1761067679233,2.03272732,4008.9,4008.8,13.11180074]
[1761067679536,2.03272732,4008.9,4008.8,0.00200074]
[1761067679730,10.24052732,4008.9,4008.8,0.00200074]
[1761067679933,2.03272732,4008.9,4008.8,0.00200074]
[1761067680231,10.24052732,4008.9,4008.8,0.00200074]
[1761067680528,9.79169732,4008.9,4008.3,10.529]
[1761067680733,1.5813,4007.5,4007.3,3.2078]
[1761067680931,1.5813,4007.5,4007.3,13.7338]
[1761067681132,1.5813,4007.4,4007.3,13.7338]
[1761067681321,1.12223,4008.6,4007.3,13.7338]
[1761067681322,2.03018,4008.7,4007.6,1.2575]
[1761067681527,3.2078,4009.2,4007.6,3.2078]
[1761067681826,1.5813,4008.3,4007.6,3.21084843]
[1761067682039,1.5813,4008.8,4008.1,3.2078]
[1761067682336,1.58389732,4008.9,4008.5,0.44889]
[1761067682526,2.03017,4008.8,4008.4,0.44891]
[1761067682722,2.03017,4008.8,4008.2,10.524]
[1761067682723,0.00259732,4008.9,4008.5,0.44889]
[1761067682929,0.00259732,4008.9,4008.8,1.2575]
[1761067683128,1.5813,4010.3,4009.9,0.44874]
[1761067683333,0.44864,4010.8,4010.1,1.2575]
[1761067683527,2.02995,4010.7,4010.2,0.4487]
[1761067683734,3.2078,4011.2,4010.5,3.2078]
[1761067683933,1.5813,4011.5,4011.0,0.44861]
[1761067684130,0.00275907,4011.5,4011.3,0.44858]
[1761067684433,0.00275907,4011.5,4011.3,1.70608]
[1761067684934,0.00275907,4011.5,4011.3,0.44858]
[1761067685238,1.58405907,4011.5,4011.3,0.44858]
[1761067685531,1.5813,4011.2,4011.1,3.2078]
[1761067685733,1.58405907,4011.5,4011.4,0.44858]
[1761067686037,1.58405907,4011.5,4011.3,0.44858]
[1761067686423,1.5813,4011.4,4011.1,13.7278]
[1761067686921,1.5813,4011.3,4011.1,13.7278]
[1761067687130,1.5813,4011.3,4011.1,14.1764]
[1761067687327,0.00275907,4011.5,4011.2,0.44859]
[1761067687527,1.58405907,4011.5,4011.2,0.44859]
[1761067687721,0.00275907,4011.5,4011.1,13.7278]
[1761067687923,0.00275907,4011.5,4011.4,1.2575]
[1761067688337,0.00275907,4011.5,4011.4,6.2575]
[1761067688535,0.00275907,4011.5,4011.4,1.2575]
[1761067689134,0.00275907,4011.5,4011.3,0.44858]
[1761067689340,0.00275907,4011.5,4011.4,10.512]
[1761067689838,0.00275907,4011.5,4011.4,11.7695]
[1761067690036,0.00275907,4011.5,4011.4,16.7695]
[1761067690735,1.5813,4012.7,4011.6,1.2575]
[1761067690942,1.6033,4012.8,4012.6,0.44843]
[1761067691238,0.44843,4012.7,4012.5,10.507]
[1761067691537,2.02975,4012.5,4012.4,3.2078]
[1761067691740,2.0324748,4012.5,4012.4,3.2078]
[1761067692042,2.0324748,4012.5,4012.4,3.65626]
[1761067692043,0.0027248,4012.5,4012.4,3.65626]
[1761067692536,7.0324748,4012.5,4012.4,3.2078]
[1761067692732,2.0298,4012.1,4012.0,10.504]
[1761067692935,2.02984,4011.7,4011.6,13.7108]
[1761067693639,2.02991,4011.1,4011.0,0.0022364]
[1761067693836,1.5813,4010.5,4010.0,0.44873]
[1761067694035,1.5813,4010.0,4009.8,3.2078]
[1761067694237,1.5813,4010.0,4009.8,3.65655]
[1761067694435,1.5813,4009.9,4009.8,3.2078]
[1761067694943,1.5813,4009.9,4009.8,3.21071246]
[1761067695136,1.5813,4010.6,4009.8,3.21071246]
[1761067695335,0.44871,4010.3,4009.8,3.65946246]
[1761067695543,0.44873,4010.0,4009.8,3.21071246]
[1761067695736,1.5813,4009.9,4009.8,3.21071246]
[1761067696439,2.03004,4009.9,4009.8,3.21071246]
[1761067696743,1.5813,4009.9,4009.8,3.21071246]
[1761067697138,1.5813,4010.1,4009.8,3.21071246]
[1761067697441,0.646,4010.0,4009.8,3.21071246]
[1761067697649,1.5813,4009.9,4009.8,0.00291246]
[1761067698539,1.5813,4009.9,4008.7,3.2078]
[1761067698540,1.85787,4008.8,4008.7,3.2078]
[1761067698733,0.4489,4008.6,4008.4,9.653]
[1761067698935,4.32985,4009.4,4008.4,9.653]
[1761067698936,1.409,4009.4,4008.4,9.653]
[1761067699140,1.409,4009.4,4009.0,0.44885]
[1761067699340,0.01934149,4009.2,4009.1,11.473]
[1761067699535,0.02249215,4009.2,4009.1,10.94289172]
[1761067699737,1.43149215,4009.2,4009.1,0.00305172]
[1761067699931,1.44642503,4009.2,4009.1,0.00305172]
[1761067700345,1.89525503,4009.2,4009.1,0.00305172]
[1761067701647,1.89525503,4009.2,4008.1,10.488]
[1761067701648,1.4185,4008.3,4008.1,10.488]
[1761067701938,0.03427437,4008.2,4008.1,10.93695]
[1761067702540,1.4185,4008.0,4007.9,3.2078]
[1761067702744,1.4185,4008.0,4007.9,3.21056162]
[1761067703044,1.45277437,4008.0,4007.9,3.21056162]
[1761067703542,7.04207437,4008.0,4007.9,0.00276162]
[1761067703748,1.4185,4007.8,4006.8,3.2078]
[1761067704044,1.4185,4007.0,4006.8,3.65689]
[1761067704935,0.03427437,4007.3,4007.2,0.44905]
[1761067705140,0.03427437,4007.3,4006.8,4.17224501]
[1761067705141,1.45277437,4007.3,4006.8,3.21004501]
[1761067705342,1.4185,4007.2,4006.8,3.21004501]
[1761067705646,1.4185,4007.0,4006.8,3.65913501]
[1761067705943,1.4185,4007.0,4006.8,3.21004501]
[1761067706132,1.45277437,4006.9,4006.8,3.21004501]
[1761067708043,1.45277437,4006.9,4006.8,0.00224501]
[1761067709241,1.45277437,4006.9,4006.8,0.45134501]
[1761067709640,1.45277437,4006.9,4006.8,0.00224501]
[1761067710049,0.03427437,4006.9,4006.8,0.96444501]
[1761067710349,1.45277437,4006.9,4006.8,0.00224501]
[1761067710651,4.66057437,4006.9,4006.8,0.00224501]
[1761067710841,1.4185,4006.6,4005.5,4.17]
[1761067711045,1.4185,4006.6,4006.5,3.2078]
[1761067711242,1.45277437,4006.6,4006.5,3.2078]
[1761067711442,1.45277437,4006.6,4006.2,0.44916]
[1761067711643,1.45277437,4006.6,4006.4,0.44914]
[1761067711844,1.45277437,4006.6,4006.5,4.17]
[1761067711845,0.03427437,4006.6,4006.5,4.17]
[1761067712044,1.4185,4007.7,4007.5,0.44902]
[1761067712346,1.4185,4007.9,4007.7,0.44899]
[1761067712541,1.4185,4008.3,4007.9,0.44897]
[1761067712843,1.4185,4008.3,4008.1,0.44895]
[1761067713241,3.2078,4008.9,4007.4,3.2078]
[1761067713242,1.4185,4008.0,4007.4,3.2078]
[1761067713440,0.44905,4007.2,4007.0,3.2078]
[1761067713644,1.4185,4007.1,4007.0,3.2078]
[1761067713844,1.4185,4007.5,4007.0,3.2078]
[1761067714049,1.4185,4007.5,4007.3,0.44904]
[1761067714447,0.44905,4007.3,4007.0,3.2078]
[1761067714641,1.4185,4007.1,4006.9,0.44908]
[1761067714842,1.4185,4007.1,4007.0,10.468]
[1761067715042,1.4185,4007.1,4006.6,0.44912]
[1761067715247,1.4185,4006.7,4006.5,3.2078]
[1761067715644,1.4185,4006.7,4006.6,10.466]
[1761067715844,1.4185,4006.7,4006.5,3.2078]
[1761067716040,1.86762,4006.6,4006.5,3.2078]
[1761067716255,1.4185,4006.6,4006.5,3.2078]
[1761067716642,1.4185,4006.9,4006.8,0.4491]
[1761067716843,1.4185,4006.9,4006.5,3.2078]
[1761067717052,1.4185,4006.9,4006.6,10.463]
[1761067717246,1.4185,4007.3,4006.9,0.44908]
[1761067717443,1.4185,4007.1,4006.5,3.2078]
[1761067717641,1.4185,4006.9,4006.7,0.44911]
[1761067718151,1.86761,4006.7,4006.5,13.6688]
[1761067718363,1.4185,4006.7,4006.1,0.00206046]
[1761067718654,1.4185,4006.7,4006.6,0.44912]
[1761067718851,1.4185,4007.3,4007.1,0.44906]
[1761067719154,1.4185,4007.3,4007.2,3.2078]
[1761067720457,4.33036,4007.5,4006.7,3.2078]
[1761067720652,4.33036,4007.5,4006.2,3.2078]
[1761067720653,0.44912,4006.6,4006.2,3.2078]
[1761067720957,1.4185,4006.7,4006.2,3.2078]
[1761067721155,1.4185,4006.6,4006.5,0.44913]
[1761067721457,1.4185,4007.1,4007.0,0.44907]
[1761067721757,1.4185,4007.1,4007.0,3.65687]
[1761067721953,1.86758,4007.0,4006.9,10.453]
[1761067722159,1.4185,4006.6,4006.5,3.2078]
[1761067723258,0.5893,4006.8,4006.1,0.00206046]
[1761067723455,1.4185,4006.3,4006.2,0.44916]
[1761067723656,1.42093978,4006.3,4006.2,0.44916]
[1761067723957,0.00243978,4006.3,4006.2,0.44916]
[1761067724570,0.00243978,4006.3,4006.2,1.41136]
[1761067724767,1.4185,4007.4,4006.5,1.12284]
[1761067724958,3.2078,4007.5,4007.3,0.44904]
[1761067724959,1.4185,4007.5,4007.3,0.44904]
[1761067725159,1.4185,4007.4,4007.1,10.89606]
[1761067725360,1.4185,4007.3,4007.2,0.44905]
[1761067725768,1.42173295,4007.3,4007.2,0.44905]
[1761067725962,0.00323295,4007.3,4007.2,10.89605]
[1761067726163,1.4185,4006.9,4006.8,3.2078]
[1761067726565,0.00323295,4007.3,4006.8,3.2078]
[1761067726566,1.4185,4007.2,4006.8,3.2078]
[1761067726767,1.42173295,4007.3,4007.2,0.44905]
[1761067727268,0.00323295,4007.3,4007.2,10.89205]
[1761067727465,1.42173295,4007.3,4007.2,10.89205]
[1761067728268,0.00323295,4007.3,4007.2,10.89205]
[1761067729564,0.00323295,4007.3,4007.2,11.85425]
[1761067729763,1.42173295,4007.3,4007.2,10.89205]
[1761067730069,1.42173295,4007.3,4007.2,10.88505]
[1761067730267,1.4185,4006.9,4006.8,3.2078]
[1761067730465,1.4185,4006.9,4006.8,14.0919]
[1761067730663,1.3446,4007.1,4007.0,0.44907]
[1761067730869,1.79367,4007.1,4006.9,10.434]
[1761067731068,1.3446,4007.0,4006.9,10.88309]
[1761067731266,0.00323295,4007.3,4007.2,0.44905]
[1761067731467,0.00323295,4007.3,4007.2,11.55365]
[1761067731671,0.00323295,4007.3,4007.2,11.55265]
[1761067732168,0.00323295,4007.3,4007.2,10.88105]
[1761067732476,0.00323295,4007.3,4006.8,3.6569]
[1761067732477,1.3446,4006.9,4006.8,3.6569]
[1761067732670,1.3446,4006.9,4006.8,13.6378]
[1761067733067,1.3446,4006.9,4006.8,14.0869]
[1761067734369,0.45227295,4007.3,4006.8,14.0869]
[1761067734370,1.34783295,4007.3,4007.2,0.44905]
[1761067735671,1.34783295,4007.3,4007.2,10.87505]
[1761067736265,0.5893,4008.0,4007.2,15.426]
[1761067736476,1.3446,4008.1,4008.0,0.44896]
[1761067736673,1.3446,4008.1,4008.0,10.86996]
[1761067736874,0.531,4008.0,4007.9,3.65677]
[1761067737081,1.8756,4008.0,4007.9,3.2078]
[1761067737278,1.8756,4008.0,4007.9,14.07678]
[1761067737475,1.87838199,4008.0,4007.9,14.07678]
[1761067738075,0.00278199,4008.0,4007.9,14.07678]
[1761067738380,0.00278199,4008.0,4007.9,14.74838]
[1761067738578,0.00278199,4008.0,4007.9,19.74838]
[1761067739077,0.00278199,4008.0,4007.9,19.89121852]
[1761067740491,1.34738199,4008.0,4007.9,14.06878]
[1761067740676,0.00278199,4008.0,4007.9,19.74038]
[1761067741075,1.9339,4009.0,4008.9,0.44886]
[1761067741076,1.3446,4009.0,4008.9,0.44886]
[1761067741377,1.3446,4009.4,4009.3,0.44882]
[1761067741682,1.3446,4009.4,4009.0,0.44884]
[1761067741886,1.3446,4009.3,4009.1,10.85684]
[1761067742378,1.79342,4009.3,4009.1,10.408]
[1761067742573,1.3446,4009.2,4009.1,10.408]
[1761067742781,1.3446,4009.0,4008.9,3.21103222]
[1761067742989,1.3446,4009.0,4008.9,10.41123222]
[1761067743189,6.3446,4009.0,4008.9,0.00323222]
[1761067743585,6.3446,4009.0,4008.4,3.65671]
[1761067743586,0.531,4008.8,4007.9,3.2078]
[1761067743879,1.3446,4007.9,4007.8,3.2078]
[1761067744787,1.3446,4007.9,4007.8,0.00275361]
[1761067744980,1.3446,4007.9,4007.8,10.40475361]
[1761067745482,1.3446,4007.9,4007.0,1.12268]
[1761067745483,0.531,4007.2,4007.1,0.89058352]
[1761067745686,1.3446,4006.9,4006.8,4.09838352]
[1761067745876,0.98006,4007.2,4006.8,4.09838352]
[1761067745877,0.531,4007.2,4006.8,4.09838352]
[1761067746076,0.531,4008.0,4007.5,0.44902]
[1761067746077,1.8756,4008.0,4007.5,0.44902]
[1761067746286,1.3446,4007.9,4007.7,0.449]
[1761067746586,1.3446,4007.9,4007.7,0.4507595]
[1761067747080,1.3446,4008.4,4008.2,0.44893]
[1761067747277,1.3446,4009.3,4008.3,13.6038]
[1761067747480,0.8557542,4009.8,4009.2,1.12043]
[1761067747481,1.3446,4009.8,4009.2,1.12043]
[1761067747681,1.3446,4010.2,4010.0,0.44873]
[1761067747984,1.3446,4010.2,4010.1,13.6008]
[1761067748176,1.8756,4010.4,4010.2,0.44872]
[1761067748377,2.2003542,4010.6,4010.4,0.44868]
[1761067748581,1.34689716,4010.6,4010.4,0.44868]
[1761067749284,1.34689716,4010.6,4010.1,13.6008]
[1761067749492,1.34689716,4010.6,4010.2,10.391]
[1761067749493,1.3446,4010.3,4010.2,10.391]
[1761067750083,0.44873,4010.1,4009.6,3.2078]
[1761067750288,1.3446,4010.0,4009.7,10.388]
[1761067750678,1.3446,4010.3,4009.6,3.2078]
[1761067750880,1.79333,4010.1,4009.7,10.386]
[1761067751086,1.3446,4009.7,4009.6,3.2078]
[1761067751289,1.3446,4009.7,4009.6,13.5918]
[1761067751682,0.531,4010.4,4010.1,0.44872]
[1761067751991,0.00229716,4010.6,4010.4,0.44869]
[1761067752382,1.34689716,4010.6,4010.4,0.44869]
[1761067752684,1.34689716,4010.6,4010.5,10.381]
[1761067753684,1.34689716,4010.6,4010.4,0.44869]
[1761067753884,1.34689716,4010.6,4010.5,10.378]
[1761067754292,1.34689716,4010.6,4010.5,10.82568]
[1761067754293,0.00229716,4010.6,4010.5,10.82568]
[1761067754587,0.00229716,4010.6,4010.5,10.82368]
[1761067755095,0.00229716,4010.6,4010.5,11.49428]
[1761067755293,12.02417,4011.6,4010.5,11.49428]
[1761067755294,1.3446,4011.6,4011.5,0.44857]
[1761067755487,1.3446,4011.6,4011.5,10.373]
[1761067756089,1.3446,4011.5,4011.4,3.2078]
[1761067756292,1.79519432,4011.5,4011.4,0.00259273]
[1761067756790,0.00202432,4011.5,4011.4,3.21039273]
[1761067756985,0.00202432,4011.5,4011.4,3.88199273]
[1761067757188,1.34662432,4011.5,4011.4,3.21039273]
[1761067757382,1.34662432,4011.5,4011.4,13.57839273]
[1761067757582,0.00202432,4011.5,4011.4,13.57839273]
[1761067757794,1.34662432,4011.5,4011.4,13.57739273]
[1761067758195,1.34662432,4011.5,4011.4,13.57639273]
[1761067758196,0.00202432,4011.5,4011.4,13.57639273]
[1761067758383,6.34662432,4011.5,4011.4,0.00259273]
[1761067758582,9.55442432,4011.5,4011.4,0.00259273]
[1761067758889,9.55442432,4011.5,4010.5,3.2078]
[1761067758890,1.1929,4010.7,4010.5,3.2078]
[1761067759097,1.1929,4010.6,4010.5,3.2078]
[1761067759690,1.1929,4010.6,4010.5,3.21039868]
[1761067760494,1.1929,4010.6,4010.5,0.00259868]
[1761067760693,6.1929,4010.6,4010.5,0.00259868]
[1761067760993,0.44874,4010.1,4009.8,7.3258]
[1761067761191,1.1996,4010.0,4009.8,7.3258]
[1761067761593,1.1996,4010.0,4009.8,7.77456]
[1761067761794,1.1996,4010.0,4009.8,7.32820494]
[1761067761992,1.1996,4009.9,4009.8,13.56620494]
[1761067763593,0.4594,4010.4,4009.8,13.56620494]
[1761067764003,1.1996,4010.9,4010.5,0.44868]
[1761067764191,1.1996,4011.2,4010.3,3.2078]
[1761067764395,1.1996,4010.8,4010.4,5.952]
[1761067764688,1.1996,4010.3,4009.9,10.349]
[1761067765092,1.1996,4010.1,4009.9,10.79775]
[1761067765293,1.1996,4010.1,4009.8,3.21020494]
[1761067765487,1.1996,4010.0,4009.9,5.503]
[1761067765690,1.1996,4009.9,4009.8,3.21020494]
[1761067765890,1.1996,4009.9,4009.8,13.55720494]
[1761067767397,0.44871,4010.3,4010.0,0.44874]
[1761067767603,1.1996,4010.2,4009.8,14.00595494]
[1761067767799,0.4594,4010.4,4009.9,0.44875]
[1761067767997,1.1996,4010.2,4010.0,0.44874]
[1761067768201,1.1996,4010.1,4010.0,0.44874]
[1761067768704,1.1996,4010.1,4009.8,13.55720494]
[1761067769303,1.1996,4010.1,4009.9,0.44875]
[1761067769503,1.1996,4010.1,4010.0,0.44874]
[1761067770400,1.1996,4011.0,4010.4,0.44869]
[1761067770607,1.1996,4011.1,4010.6,3.2078]
[1761067770802,1.1996,4011.2,4010.6,3.65647]
[1761067771000,1.1996,4010.7,4010.6,3.2078]
[1761067771299,1.1996,4010.7,4010.6,3.65647]
[1761067771697,1.1996,4010.7,4010.5,10.335]
[1761067771896,0.44872,4010.2,4010.1,3.2078]
[1761067772098,0.44872,4010.2,4010.1,13.5408]
[1761067772099,1.1996,4010.2,4010.1,13.5408]
[1761067772300,1.1996,4010.2,4010.1,3.2078]
[1761067772598,1.1996,4010.2,4010.1,13.98753]
[1761067772900,1.64835,4009.9,4009.8,0.00240494]
[1761067773691,1.1996,4009.9,4009.8,0.00240494]
[1761067773894,1.64835,4009.9,4009.8,0.00240494]
[1761067775297,1.1996,4009.9,4009.8,0.00240494]
[1761067775504,1.64835,4009.9,4009.8,0.00240494]
[1761067776001,0.44873,4010.1,4009.8,0.45115494]
[1761067776208,1.1996,4010.0,4009.9,0.44875]
[1761067776911,1.1996,4010.7,4010.6,0.44867]
[1761067777106,1.1996,4010.7,4010.6,13.5298]
[1761067777410,1.1996,4010.7,4010.6,13.97847]
[1761067777904,1.1996,4010.7,4010.1,0.4067]
[1761067777905,1.64832,4010.2,4010.1,3.2078]
[1761067778209,1.1996,4009.9,4009.8,0.00240494]
[1761067778606,1.64835,4009.9,4009.8,10.31840494]
[1761067778911,1.64835,4009.9,4009.8,0.00240494]
[1761067779108,1.1996,4009.9,4009.8,0.00240494]
[1761067779404,1.1996,4009.9,4009.8,0.45116494]
[1761067779604,1.64835,4009.9,4009.8,0.00240494]
[1761067780401,1.1996,4009.9,4009.8,0.00240494]
[1761067780596,1.1996,4009.9,4009.8,0.45116494]
[1761067780811,1.1996,4010.2,4010.1,0.44873]
[1761067782206,0.44873,4010.1,4009.8,0.45116494]
[1761067782410,1.1996,4010.0,4009.9,0.44875]
[1761067787008,1.1996,4010.7,4010.0,1.52856]
[1761067787205,1.64826,4010.7,4010.6,3.2078]
[1761067787511,1.12156,4011.1,4010.0,3.2078]
[1761067787512,1.1996,4010.6,4010.0,3.2078]
[1761067787704,1.1996,4011.0,4010.0,3.2078]
[1761067787911,1.1996,4010.9,4010.3,0.44871]
[1761067788114,1.1996,4010.5,4010.4,0.44869]
[1761067788613,1.659,4010.3,4010.2,0.44871]
[1761067788910,1.659,4010.3,4010.2,10.73971]
[1761067790213,1.64833,4010.1,4010.0,3.2078]
[1761067791307,1.58104,4010.0,4009.9,10.29]
[1761067793217,1.58105,4009.9,4009.8,0.00240494]
[1761067795615,1.1323,4009.9,4009.8,0.00240494]
[1761067795836,1.58105,4009.9,4009.8,0.00240494]
[1761067796114,1.1323,4009.9,4009.8,0.00240494]
[1761067796714,1.58105,4009.9,4009.8,10.27540494]
[1761067796909,1.58105,4009.9,4009.8,10.27340494]
[1761067797611,1.58105,4009.9,4009.8,0.00240494]
[1761067800113,0.4594,4010.3,4010.2,0.44872]
[1761067800314,0.8557542,4011.0,4010.9,0.44864]
[1761067800521,1.70569393,4011.3,4011.2,0.44861]
[1761067800522,0.4828,4011.3,4011.2,0.44861]
[1761067800823,0.00202432,4011.5,4010.9,3.2078]
[1761067800824,0.85777852,4011.5,4010.9,3.2078]
[1761067801119,1.58105,4009.9,4009.8,0.00240494]
[1761067801317,4.78885,4009.9,4009.8,0.00240494]
[1761067801514,3.6238,4010.4,4009.8,10.26140494]
[1761067801720,0.416,4010.4,4010.0,3.2078]
[1761067801922,0.8647,4010.4,4010.1,10.258]
[1761067802220,0.416,4010.4,4010.2,0.44871]
[1761067802421,0.416,4010.4,4010.1,10.258]
[1761067802619,0.8647,4010.4,4010.1,10.258]
[1761067802814,0.416,4010.4,4010.2,0.44871]
[1761067803018,0.416,4011.0,4010.5,0.44868]
[1761067803019,1.27527053,4011.0,4010.5,0.44868]
[1761067803226,0.85927053,4010.6,4010.5,0.44868]
[1761067803424,0.416,4011.0,4010.5,0.44868]
[1761067803425,0.85927053,4010.8,4010.7,0.44866]
[1761067803715,1.1323,4010.7,4010.5,10.70368]
[1761067803924,1.1323,4010.7,4010.0,3.2078]
[1761067804225,1.1323,4010.7,4010.2,0.44872]
[1761067804226,1.5483,4010.3,4010.2,0.44872]
[1761067804617,0.44866,4010.7,4010.4,0.44869]
[1761067804618,1.1323,4010.7,4010.4,0.44869]
[1761067805125,1.1323,4010.7,4010.5,0.44868]
[1761067805316,1.1323,4010.9,4010.6,13.4588]
[1761067805517,1.1323,4011.3,4011.2,0.4486]
[1761067805721,3.2078,4011.4,4011.3,0.3268]
[1761067805918,0.00202432,4011.5,4011.4,0.77538]
[1761067806124,1.22289393,4012.1,4012.0,0.77532]
[1761067806424,1.22289393,4012.1,4012.0,14.38761347]
[1761067806628,1.70096821,4012.5,4012.1,0.3268]
[1761067806629,0.85874152,4012.5,4012.1,0.3268]
[1761067806921,1.1323,4012.4,4012.0,3.36529347]
[1761067807219,1.1323,4011.9,4011.3,0.44859]
[1761067807417,0.44864,4010.9,4010.7,3.2078]
[1761067807618,1.5483,4010.4,4009.7,3.2078]
[1761067807816,1.1323,4010.3,4009.8,0.45116494]
[1761067808122,1.1323,4010.0,4009.9,9.583]
[1761067808512,1.1323,4010.7,4010.2,0.44871]
[1761067808726,0.44869,4010.5,4010.3,10.24]
[1761067809016,1.1323,4010.3,4010.2,10.239]
[1761067809222,1.1323,4010.3,4010.2,10.238]
[1761067809527,1.58096,4010.8,4010.2,10.68671]
[1761067809711,1.1323,4010.3,4009.8,0.00240494]
[1761067809919,1.1323,4010.2,4009.8,0.00240494]
[1761067810112,0.44874,4010.0,4009.8,0.00240494]
[1761067810319,4.3401,4009.9,4009.8,0.00240494]
[1761067810521,0.416,4009.6,4008.5,4.10329904]
[1761067810726,1.1323,4008.5,4008.3,0.89549904]
[1761067810919,0.416,4008.8,4008.5,0.44891]
[1761067811121,1.1323,4008.8,4008.5,3.2078]
[1761067811327,1.1323,4009.1,4008.7,0.44888]
[1761067811622,1.13520017,4009.1,4008.8,10.68287]
[1761067811830,1.13520017,4009.1,4008.9,10.232]
[1761067812022,1.13520017,4009.1,4008.7,0.00232797]
[1761067812218,1.1323,4009.0,4008.7,6.66332797]
[1761067812527,0.00290017,4009.1,4009.0,0.44885]
[1761067813128,1.13520017,4009.1,4009.0,10.67885]
[1761067814027,1.13520017,4009.1,4009.0,0.44885]
[1761067814325,1.13520017,4009.1,4009.0,10.67785]
[1761067815126,1.13520017,4009.1,4009.0,0.44885]
[1761067815328,1.13520017,4009.1,4008.9,0.44886]
[1761067815629,1.13520017,4009.1,4009.0,10.224]
[1761067816129,0.00290017,4009.1,4009.0,15.5508]
[1761067816623,0.00290017,4009.1,4009.0,0.3268]
[1761067816817,0.00290017,4009.1,4008.9,0.44886]
[1761067816818,1.13520017,4009.1,4008.9,0.44886]
[1761067817022,1.13520017,4009.1,4009.0,10.221]
[1761067817525,1.13520017,4009.1,4008.8,3.65666]
[1761067817727,1.13520017,4009.1,4008.9,10.66785]
[1761067818030,0.00290017,4009.1,4008.9,10.66785]
[1761067818932,0.00290017,4009.1,4009.0,0.2826]
[1761067819124,0.00290017,4009.1,4009.0,5.2826]
[1761067819936,0.00290017,4009.1,4009.0,0.2826]
[1761067820321,0.00290017,4009.1,4009.0,5.2826]
[1761067822030,1.0873,4009.0,4008.8,3.2078]
[1761067822226,0.00290017,4009.1,4009.0,0.71625]
[1761067822833,1.09020017,4009.1,4009.0,0.44885]
[1761067823233,1.09020017,4009.1,4009.0,10.65485]
[1761067823436,0.00290017,4009.1,4009.0,10.65485]
[1761067823630,1.09020017,4009.1,4009.0,10.65285]
[1761067824327,0.00290017,4009.1,4009.0,10.65285]
[1761067824528,0.00290017,4009.1,4009.0,10.91825]
[1761067824722,0.416,4010.4,4009.1,0.2674]
[1761067824943,1.0873,4010.6,4010.5,0.44868]
[1761067825229,1.0873,4011.1,4010.9,0.44863]
[1761067825437,1.0873,4011.1,4011.0,10.2]
[1761067825824,1.09043127,4011.1,4011.0,10.2]
[1761067826237,1.09043127,4011.1,4011.0,10.34969811]
[1761067826633,0.00313127,4011.1,4011.0,13.82289811]
[1761067827230,0.00313127,4011.1,4011.0,3.62589811]
[1761067827535,0.00313127,4011.1,4011.0,13.82089811]
[1761067827728,1.0873,4012.4,4012.2,0.44849]
[1761067827933,1.0873,4012.4,4012.3,10.193]
[1761067828736,6.09031514,4012.4,4012.3,0.00242597]
[1761067829037,9.29811514,4012.4,4011.2,0.4486]
[1761067829232,1.0873,4011.6,4010.9,3.65644]
[1761067829426,1.53592,4011.1,4011.0,10.189]
[1761067829629,1.0873,4011.1,4011.0,10.189]